bitfinex-derivatives/quotes_BTCF0:USTF0_20250510
["timestamp","ask_amount","ask_price","bid_price","bid_amount"]
[1746854522231,0.6231549,103250.0,103240.0,0.58082504]
[1746854523145,0.72155793,103250.0,103240.0,0.58082504]
[1746854523326,0.72155793,103250.0,103240.0,0.58070504]
[1746854524046,0.72155793,103250.0,103240.0,0.65278179]
[1746854524231,0.88755793,103250.0,103240.0,0.65278179]
[1746854525139,0.72155793,103250.0,103240.0,0.65278179]
[1746854527038,0.78647075,103250.0,103240.0,0.65278179]
[1746854527336,0.42567075,103250.0,103240.0,0.65278179]
[1746854527543,0.78647075,103250.0,103240.0,0.65278179]
[1746854529644,0.78647075,103250.0,103240.0,0.58070504]
[1746854531644,0.78647075,103250.0,103240.0,0.33546504]
[1746854531943,0.78647075,103250.0,103240.0,0.58018504]
[1746854532444,0.78647075,103250.0,103240.0,0.58014504]
[1746854532939,0.78647075,103250.0,103240.0,0.33546504]
[1746854533144,0.78647075,103250.0,103240.0,0.58014504]
[1746854533443,0.78647075,103250.0,103240.0,0.57834504]
[1746854534948,0.78647075,103250.0,103240.0,0.65042179]
[1746854535242,0.78647075,103250.0,103240.0,0.68192179]
[1746854541745,0.78647075,103250.0,103240.0,0.65713837]
[1746854543541,0.42567075,103250.0,103240.0,0.65713837]
[1746854543838,0.78647075,103250.0,103240.0,0.65713837]
[1746854548545,0.77921075,103250.0,103240.0,0.65713837]
[1746854551550,0.78021075,103250.0,103240.0,0.65713837]
[1746854551847,0.78121075,103250.0,103240.0,0.65713837]
[1746854552547,0.78847075,103250.0,103240.0,0.65713837]
[1746854553956,0.93641642,103250.0,103240.0,0.65713837]
[1746854556255,0.93641642,103250.0,103240.0,0.60984504]
[1746854556750,0.93641642,103250.0,103240.0,0.36696504]
[1746854556958,0.93641642,103250.0,103240.0,0.60880504]
[1746854557747,0.93641642,103250.0,103240.0,0.60876504]
[1746854557952,0.93641642,103250.0,103240.0,0.36696504]
[1746854558263,0.93641642,103250.0,103240.0,0.60872504]
[1746854558447,0.93641642,103250.0,103240.0,0.36696504]
[1746854558957,0.93641642,103250.0,103240.0,0.60884504]
[1746854561654,0.98370975,103250.0,103240.0,0.11145144]
[1746854561955,1.08056575,103250.0,103240.0,0.11145144]
[1746854562156,1.34656575,103250.0,103240.0,0.11145144]
[1746854563057,1.55656575,103250.0,103240.0,0.11145144]
[1746854563859,1.80656575,103250.0,103240.0,0.11145144]
[1746854565260,1.81610362,103250.0,103240.0,0.11145144]
[1746854565758,1.80656575,103250.0,103240.0,0.11145144]
[1746854565950,1.68327769,103250.0,103240.0,0.11145144]
[1746854566254,1.43327769,103250.0,103240.0,0.11145144]
[1746854567663,1.33642169,103250.0,103240.0,0.11145144]
[1746854567864,1.43327769,103250.0,103240.0,0.11145144]
[1746854569056,1.43521473,103250.0,103240.0,0.11145144]
[1746854570564,1.43421473,103250.0,103240.0,0.11145144]
[1746854570771,1.43821473,103250.0,103240.0,0.11145144]
[1746854571067,1.43721473,103250.0,103240.0,0.11145144]
[1746854571258,1.44121473,103250.0,103240.0,0.11245144]
[1746854572872,1.24751983,103250.0,103230.0,0.031]
[1746854573056,0.1937512,103220.0,103210.0,0.5154091]
[1746854573259,0.5545512,103220.0,103210.0,0.5456091]
[1746854573465,0.6181512,103220.0,103210.0,0.64246609]
[1746854574362,0.6504512,103220.0,103210.0,0.7007637]
[1746854574764,0.6504512,103220.0,103210.0,0.5799637]
[1746854574966,0.6504512,103220.0,103210.0,0.7017237]
[1746854576368,0.82288231,103220.0,103210.0,0.7027237]
[1746854578365,0.82588231,103220.0,103210.0,0.7027237]
[1746854578977,0.82488231,103220.0,103210.0,0.7007237]
[1746854579159,0.82688231,103220.0,103210.0,0.7007237]
[1746854579467,0.75298326,103220.0,103210.0,0.7007237]
[1746854579767,0.75098326,103220.0,103210.0,0.7007237]
[1746854581568,0.75098326,103220.0,103210.0,0.74801703]
[1746854581866,0.75824326,103220.0,103210.0,0.74801703]
[1746854584371,0.75824326,103220.0,103210.0,0.7007237]
[1746854585360,0.75824326,103220.0,103210.0,0.6522813]
[1746854586672,0.75824326,103220.0,103210.0,0.6516813]
[1746854587269,0.75824326,103220.0,103210.0,0.5305213]
[1746854587470,0.83211857,103220.0,103210.0,0.6516013]
[1746854589170,1.2402119,103220.0,103210.0,0.3367546]
[1746854589370,1.2402119,103220.0,103210.0,0.3047546]
[1746854590276,1.4062119,103220.0,103210.0,0.26496663]
[1746854591078,1.33233659,103220.0,103210.0,0.26496663]
[1746854592277,1.69233659,103220.0,103210.0,0.26496663]
[1746854592468,1.69233659,103220.0,103210.0,0.14456663]
[1746854592669,1.73962992,103220.0,103210.0,0.14456663]
[1746854594071,1.73962992,103220.0,103210.0,0.11136663]
[1746854595179,1.73962992,103220.0,103210.0,0.14386663]
[1746854595574,1.80430752,103220.0,103210.0,0.14386663]
[1746854602685,1.82908811,103220.0,103210.0,0.14386663]
[1746854603773,1.94980811,103220.0,103210.0,0.14386663]
[1746854606082,1.78380811,103220.0,103210.0,0.14386663]
[1746854607877,1.20770145,103220.0,103210.0,0.33763653]
[1746854608077,0.42290145,103220.0,103210.0,0.58362986]
[1746854608272,0.19725025,103220.0,103210.0,1.09596986]
[1746854608477,0.39100145,103220.0,103210.0,1.09596986]
[1746854609199,0.19725025,103220.0,103210.0,1.09596986]
[1746854609399,0.39100145,103220.0,103210.0,1.09596986]
[1746854610408,0.39100145,103220.0,103210.0,1.09696986]
[1746854610697,0.38900145,103220.0,103210.0,1.09696986]
[1746854610898,0.38900145,103220.0,103210.0,1.09796986]
[1746854611092,0.3737151,103220.0,103210.0,1.09796986]
[1746854613796,0.3737151,103220.0,103210.0,1.05067653]
[1746854613997,0.3737151,103220.0,103210.0,1.09796986]
[1746854614701,0.27502716,103220.0,103210.0,1.09796986]
[1746854625508,0.3737151,103220.0,103210.0,1.09796986]
[1746854632917,0.4378151,103220.0,103210.0,1.09796986]
[1746854633217,0.4378151,103220.0,103210.0,1.05067653]
[1746854633426,0.4378151,103220.0,103210.0,1.09796986]
[1746854640327,0.36379914,103220.0,103210.0,1.09796986]
[1746854645532,0.36379914,103220.0,103210.0,1.21780986]
[1746854648828,0.10594794,103220.0,103210.0,1.62590319]
[1746854649231,0.29969914,103220.0,103210.0,1.57860986]
[1746854653237,0.27511127,103220.0,103210.0,1.57860986]
[1746854654535,0.08136007,103220.0,103210.0,1.57860986]
[1746854655534,0.27511127,103220.0,103210.0,1.57860986]
[1746854655740,0.33801127,103220.0,103210.0,1.57860986]
[1746854655932,0.14426007,103220.0,103210.0,1.57860986]
[1746854656741,0.24294801,103220.0,103210.0,1.57860986]
[1746854660854,0.43669921,103220.0,103210.0,1.57860986]
[1746854661448,0.24294801,103220.0,103210.0,1.57860986]
[1746854662562,0.43669921,103220.0,103210.0,1.57860986]
[1746854662853,0.24294801,103220.0,103210.0,1.57860986]
[1746854664350,0.24294801,103220.0,103210.0,1.22723653]
[1746854664552,0.43669921,103220.0,103210.0,0.74411653]
[1746854664846,0.43669921,103220.0,103210.0,0.62487653]
[1746854665047,0.43669921,103220.0,103210.0,0.74411653]
[1746854665244,0.60269921,103220.0,103210.0,0.57811653]
[1746854666457,0.60269921,103220.0,103210.0,0.45887653]
[1746854666656,0.60269921,103220.0,103210.0,0.57811653]
[1746854669154,0.4299112,103220.0,103210.0,0.57811653]
[1746854669358,0.59330879,103220.0,103210.0,0.57811653]
[1746854669557,0.64060212,103220.0,103210.0,0.11336663]
[1746854669752,1.00140212,103220.0,103210.0,0.11336663]
[1746854669945,1.00140212,103220.0,103210.0,0.23260663]
[1746854670354,1.04869545,103220.0,103210.0,0.23260663]
[1746854670553,1.00140212,103220.0,103210.0,0.23260663]
[1746854670954,1.14869545,103220.0,103210.0,0.23260663]
[1746854672362,1.14869545,103220.0,103210.0,0.11336663]
[1746854672662,0.1937699,103210.0,103200.0,0.24245267]
[1746854672846,0.86656323,103210.0,103200.0,0.24245267]
[1746854673048,0.86656323,103210.0,103200.0,0.33933781]
[1746854673251,1.03256323,103210.0,103200.0,0.35378419]
[1746854673654,1.03256323,103210.0,103200.0,0.11530419]
[1746854673860,1.03256323,103210.0,103200.0,0.23454419]
[1746854674067,1.03356323,103210.0,103200.0,0.23754419]
[1746854675160,1.03356323,103210.0,103200.0,0.24054419]
[1746854676361,1.04082323,103210.0,103200.0,0.24054419]
[1746854677162,1.20410836,103210.0,103200.0,0.24054419]
[1746854678765,0.84330836,103210.0,103200.0,0.24054419]
[1746854679065,1.20410836,103210.0,103200.0,0.24054419]
[1746854681868,1.20410836,103210.0,103200.0,0.23754419]
[1746854682068,1.20510836,103210.0,103200.0,0.23754419]
[1746854682461,1.20710836,103210.0,103200.0,0.26654419]
[1746854682764,1.20610836,103210.0,103200.0,0.26654419]
[1746854682966,1.20810836,103210.0,103200.0,0.26654419]
[1746854684067,1.14326977,103210.0,103200.0,0.26654419]
[1746854689571,0.78246977,103210.0,103200.0,0.26654419]
[1746854689764,1.14326977,103210.0,103200.0,0.26654419]
[1746854690670,1.09597644,103210.0,103200.0,0.26654419]
[1746854690971,1.14326977,103210.0,103200.0,0.26654419]
[1746854693673,1.14326977,103210.0,103200.0,0.46033289]
[1746854693982,0.92597644,103210.0,103200.0,0.46033289]
[1746854694176,0.75997644,103210.0,103200.0,0.49133289]
[1746854694471,0.80726977,103210.0,103200.0,0.49133289]
[1746854698178,0.97326977,103210.0,103200.0,0.49133289]
[1746854702176,0.97326977,103210.0,103200.0,0.29754419]
[1746854702475,1.03811691,103210.0,103200.0,0.29754419]
[1746854702675,1.22811691,103210.0,103200.0,0.29754419]
[1746854704775,1.22811691,103210.0,103200.0,0.26650419]
[1746854705374,1.22811691,103210.0,103200.0,0.29870419]
[1746854706182,1.25281511,103210.0,103200.0,0.29870419]
[1746854706975,1.25281511,103210.0,103200.0,0.17950419]
[1746854707172,1.25281511,103210.0,103200.0,0.29870419]
[1746854708679,1.20552178,103210.0,103200.0,0.29870419]
[1746854708882,1.01552178,103210.0,103200.0,0.53978622]
[1746854709077,0.84952178,103210.0,103200.0,0.53978622]
[1746854709278,0.84952178,103210.0,103200.0,0.49249289]
[1746854713982,0.89681511,103210.0,103200.0,0.49249289]
[1746854714683,0.84952178,103210.0,103200.0,0.49249289]
[1746854720276,0.89681511,103210.0,103200.0,0.49249289]
[1746854721086,0.89681511,103210.0,103200.0,0.29870419]
[1746854724889,0.84952178,103210.0,103200.0,0.49249289]
[1746854725187,0.84952178,103210.0,103200.0,0.33040419]
[1746854725188,0.89681511,103210.0,103200.0,0.33040419]
[1746854726690,0.87240339,103210.0,103200.0,0.33040419]
[1746854730288,0.87240339,103210.0,103200.0,0.52419289]
[1746854730596,0.70157611,103210.0,103200.0,0.52419289]
[1746854733694,0.70157611,103210.0,103200.0,0.57148622]
[1746854733899,0.63757611,103210.0,103200.0,0.57148622]
[1746854734197,0.63757611,103210.0,103200.0,0.73748622]
[1746854734392,0.67057611,103210.0,103200.0,0.73748622]
[1746854734694,0.70177611,103210.0,103200.0,0.73748622]
[1746854734898,0.84972178,103210.0,103200.0,0.73748622]
[1746854735194,0.84972178,103210.0,103200.0,0.69019289]
[1746854735396,0.89701511,103210.0,103200.0,0.69019289]
[1746854735790,0.84972178,103210.0,103200.0,0.69019289]
[1746854736193,0.84972178,103210.0,103200.0,0.52419289]
[1746854738596,0.84972178,103210.0,103200.0,0.57148622]
[1746854739700,0.84972178,103210.0,103200.0,0.52419289]
[1746854739893,0.97324347,103210.0,103200.0,0.52419289]
[1746854741100,0.97324347,103210.0,103200.0,0.69019289]
[1746854743102,0.8252978,103210.0,103200.0,0.52419289]
[1746854752424,0.97324347,103210.0,103200.0,0.52419289]
[1746854758129,0.97324347,103210.0,103200.0,0.69019289]
[1746854759525,0.54824347,103210.0,103200.0,0.73748622]
[1746854759932,0.54824347,103210.0,103200.0,1.09828622]
[1746854761338,0.58014347,103210.0,103200.0,1.09828622]
[1746854762036,0.4321978,103210.0,103200.0,1.09828622]
[1746854766737,0.58014347,103210.0,103200.0,1.09828622]
[1746854768236,0.61214347,103210.0,103200.0,1.09828622]
[1746854770837,0.4641978,103210.0,103200.0,1.09828622]
[1746854776542,0.39940212,103210.0,103200.0,1.09828622]
[1746854777134,0.20563222,103210.0,103200.0,1.14557955]
[1746854777332,0.30480212,103210.0,103200.0,1.14557955]
[1746854777747,0.30480212,103210.0,103200.0,1.05099289]
[1746854778043,0.30480212,103210.0,103200.0,1.09828622]
[1746854778341,0.39670212,103210.0,103200.0,1.09828622]
[1746854780543,0.39670212,103210.0,103200.0,1.05099289]
[1746854780741,0.39670212,103210.0,103200.0,1.09828622]
[1746854800046,0.39670212,103210.0,103200.0,1.26428622]
[1746854800256,0.39670212,103210.0,103200.0,1.09828622]
[1746854802250,0.39670212,103210.0,103200.0,0.93228622]
[1746854802455,0.39670212,103210.0,103200.0,0.97957955]
[1746854803154,0.39670212,103210.0,103200.0,1.14557955]
[1746854804055,0.11103222,103210.0,103200.0,1.14557955]
[1746854809655,0.10903222,103210.0,103200.0,1.14757955]
[1746854810756,0.10903222,103210.0,103200.0,1.19487288]
[1746854810963,0.10703222,103210.0,103200.0,1.14857955]
[1746854811156,0.10703222,103210.0,103200.0,1.19587288]
[1746854811355,0.10703222,103210.0,103200.0,1.14857955]
[1746854811555,0.10703222,103210.0,103200.0,1.24547555]
[1746854812463,0.10703222,103210.0,103200.0,1.29276888]
[1746854812664,0.10703222,103210.0,103200.0,1.24547555]
[1746854813252,0.08234101,103210.0,103200.0,1.24547555]
[1746854814163,0.08234101,103210.0,103200.0,0.88467555]
[1746854814463,0.08234101,103210.0,103200.0,1.60627555]
[1746854815569,0.08234101,103210.0,103200.0,1.50937955]
[1746854815758,0.08234101,103210.0,103200.0,1.60627555]
[1746854816059,0.00826,103210.0,103200.0,1.60627555]
[1746854816963,0.00826,103210.0,103200.0,1.65356888]
[1746854819571,0.00826,103210.0,103200.0,1.60627555]
[1746854824868,0.00826,103210.0,103200.0,1.65356888]
[1746854825685,0.00826,103210.0,103200.0,1.60627555]
[1746854826979,0.00826,103210.0,103200.0,1.50937955]
[1746854827184,0.00826,103210.0,103200.0,1.60627555]
[1746854828570,0.094,103220.0,103210.0,0.1937699]
[1746854828769,0.094,103220.0,103210.0,0.86353656]
[1746854829172,0.094,103220.0,103210.0,1.12643109]
[1746854831280,0.094,103220.0,103210.0,1.12843109]
[1746854832381,0.095,103220.0,103210.0,1.13043109]
[1746854832782,0.095,103220.0,103210.0,2.29043109]
[1746854833974,0.095,103220.0,103210.0,2.24313776]
[1746854841088,0.095,103220.0,103210.0,2.07713776]
[1746854842090,0.095,103220.0,103210.0,2.24313776]
[1746854845189,0.095,103220.0,103210.0,2.07713776]
[1746854848097,0.095,103220.0,103210.0,2.24313776]
[1746854849199,0.095,103220.0,103210.0,2.07713776]
[1746854852096,0.095,103220.0,103210.0,2.24313776]
[1746854854103,0.095,103220.0,103210.0,2.07713776]
[1746854856200,0.095,103220.0,103210.0,2.24313776]
[1746854856794,0.095,103220.0,103210.0,2.36173776]
[1746854857203,0.095,103220.0,103210.0,2.19573776]
[1746854865615,0.10226,103220.0,103210.0,2.19573776]
[1746854869127,0.10226,103220.0,103210.0,2.36173776]
[1746854870113,0.10226,103220.0,103210.0,2.19573776]
[1746854870814,0.10226,103220.0,103210.0,1.83493776]
[1746854871013,0.10226,103220.0,103210.0,2.19573776]
[1746854873621,0.10226,103220.0,103210.0,2.04595776]
[1746854873821,0.10226,103220.0,103210.0,2.16423776]
[1746854878327,0.10226,103220.0,103210.0,2.19563776]
[1746854882121,0.10226,103220.0,103210.0,2.14834443]
[1746854882420,0.10226,103220.0,103210.0,2.19563776]
[1746854887334,0.10226,103220.0,103210.0,1.83483776]
[1746854887535,0.10226,103220.0,103210.0,2.19563776]
[1746854888034,0.10226,103220.0,103210.0,1.83483776]
[1746854888335,0.10226,103220.0,103210.0,2.14834443]
[1746854888530,0.10226,103220.0,103210.0,2.19563776]
[1746854889035,0.10226,103220.0,103210.0,1.83483776]
[1746854889230,0.10226,103220.0,103210.0,2.19563776]
[1746854892239,0.2960112,103220.0,103210.0,1.69146443]
[1746854892436,0.2960112,103220.0,103210.0,1.72386443]
[1746854892637,0.2960112,103220.0,103210.0,1.77115776]
[1746854893137,0.4620112,103220.0,103210.0,1.77115776]
[1746854896141,0.2960112,103220.0,103210.0,1.77115776]
[1746854897839,0.17634101,103220.0,103210.0,2.21015109]
[1746854898027,0.17634101,103220.0,103210.0,2.24335109]
[1746854898233,0.11444101,103220.0,103210.0,2.24335109]
[1746854899539,0.11444101,103220.0,103210.0,2.19605776]
[1746854900842,0.07156,103220.0,103210.0,2.19605776]
[1746854905541,0.07156,103220.0,103210.0,2.24335109]
[1746854905740,0.04036,103220.0,103210.0,2.24335109]
[1746854906141,0.04036,103220.0,103210.0,2.40935109]
[1746854907153,0.04036,103220.0,103210.0,2.36205776]
[1746854907850,0.04036,103220.0,103210.0,2.31476443]
[1746854908149,0.04036,103220.0,103210.0,2.36205776]
[1746854908952,0.04036,103220.0,103210.0,2.00125776]
[1746854909152,0.04036,103220.0,103210.0,2.19605776]
[1746854910247,0.07336,103220.0,103210.0,2.19605776]
[1746854919765,0.14744101,103220.0,103210.0,2.19605776]
[1746854926075,0.14744101,103220.0,103210.0,2.36205776]
[1746854926467,0.17774101,103220.0,103210.0,2.36205776]
[1746854927179,0.17774101,103220.0,103210.0,2.19605776]
[1746854930172,0.17774101,103220.0,103210.0,1.83525776]
[1746854930472,0.17774101,103220.0,103210.0,2.19605776]
[1746854935086,0.17774101,103220.0,103210.0,1.83525776]
[1746854935382,0.17774101,103220.0,103210.0,2.19605776]
[1746854942187,0.17774101,103220.0,103210.0,2.36205776]
[1746854943188,0.17774101,103220.0,103210.0,2.19605776]
[1746854943586,0.08234101,103220.0,103210.0,2.24335109]
[1746854944087,0.08234101,103220.0,103210.0,2.40935109]
[1746854944473,0.33849221,103220.0,103210.0,2.36205776]
[1746854944679,0.33849221,103220.0,103210.0,2.32853776]
[1746854944880,0.37099221,103220.0,103210.0,2.32853776]
[1746854945085,0.37099221,103220.0,103210.0,2.16253776]
[1746854945389,0.17724101,103220.0,103210.0,2.16253776]
[1746854946586,0.10316,103220.0,103210.0,2.16253776]
[1746854950484,0.10316,103220.0,103210.0,2.19393776]
[1746854954899,0.2969112,103220.0,103210.0,2.19393776]
[1746854955088,0.2969112,103220.0,103210.0,2.14664443]
[1746854955387,0.2969112,103220.0,103210.0,2.19393776]
[1746854958096,0.2969112,103220.0,103210.0,1.83313776]
[1746854958600,0.2969112,103220.0,103210.0,1.83305776]
[1746854959198,0.2969112,103220.0,103210.0,1.80165776]
[1746854961303,0.37099221,103220.0,103210.0,1.80165776]
[1746854964414,0.37099221,103220.0,103210.0,1.83245776]
[1746854969415,0.17724101,103220.0,103210.0,2.19325776]
[1746854971709,0.37099221,103220.0,103210.0,2.19325776]
[1746854972107,0.37099221,103220.0,103210.0,2.14596443]
[1746854972315,0.37099221,103220.0,103210.0,2.19325776]
[1746854977517,0.37099221,103220.0,103210.0,1.83245776]
[1746854977721,0.37099221,103220.0,103210.0,2.19325776]
[1746854985517,0.17724101,103220.0,103210.0,2.19325776]
[1746854986326,0.37099221,103220.0,103210.0,2.19325776]
[1746854994626,0.17724101,103220.0,103210.0,2.19325776]
[1746854995235,0.11404101,103220.0,103210.0,2.35925776]
[1746854996239,0.11404101,103220.0,103210.0,2.19325776]
[1746854996630,0.14434101,103220.0,103210.0,2.19325776]
[1746854998036,0.14434101,103220.0,103210.0,1.83245776]
[1746854998240,0.14434101,103220.0,103210.0,2.19325776]
[1746854999439,0.33809221,103220.0,103210.0,2.19325776]
[1746855000342,0.33809221,103220.0,103210.0,2.14596443]
[1746855000546,0.33809221,103220.0,103210.0,2.19325776]
[1746855000744,0.37109221,103220.0,103210.0,2.19325776]
[1746855006643,0.37109221,103220.0,103210.0,0.25105453]
[1746855006839,0.37109221,103220.0,103210.0,0.56250443]
[1746855007039,0.37109221,103220.0,103210.0,0.60979776]
[1746855007243,0.53709221,103220.0,103210.0,0.60979776]
[1746855009546,0.53709221,103220.0,103210.0,0.13329453]
[1746855009755,1.05206954,103220.0,103210.0,0.21865453]
[1746855011145,1.15084176,103220.0,103210.0,0.21865453]
[1746855011646,1.14984176,103220.0,103210.0,0.21665453]
[1746855011943,1.15184176,103220.0,103210.0,0.40942443]
[1746855012147,1.15384176,103220.0,103210.0,0.40942443]
[1746855013249,1.05695776,103220.0,103210.0,0.40942443]
[1746855013548,1.15384176,103220.0,103210.0,0.40942443]
[1746855014142,1.15384176,103220.0,103210.0,0.21565453]
[1746855014538,0.98287675,103220.0,103210.0,0.21565453]
[1746855018652,0.98287675,103220.0,103210.0,0.24705453]
[1746855019357,0.93558342,103220.0,103210.0,0.24705453]
[1746855019554,0.93558342,103220.0,103210.0,0.48811776]
[1746855019941,0.46978342,103220.0,103210.0,0.89621109]
[1746855020146,0.11003222,103220.0,103210.0,1.12711109]
[1746855020348,0.30378342,103220.0,103210.0,1.07981776]
[1746855022060,0.30178342,103220.0,103210.0,1.07981776]
[1746855022256,0.37571623,103220.0,103210.0,1.08181776]
[1746855023155,0.37471623,103220.0,103210.0,1.08281776]
[1746855024953,0.37471623,103220.0,103210.0,0.72201776]
[1746855025155,0.37471623,103220.0,103210.0,1.08281776]
[1746855025655,0.2020112,103220.0,103210.0,1.08281776]
[1746855030259,0.00826,103220.0,103210.0,0.91681776]
[1746855030758,0.2020112,103220.0,103210.0,0.91681776]
[1746855031053,0.2020112,103220.0,103210.0,1.08281776]
[1746855032259,0.2020112,103220.0,103210.0,0.91681776]
[1746855032459,0.00826,103220.0,103210.0,0.91681776]
[1746855032760,0.2020112,103220.0,103210.0,0.91681776]
[1746855033159,0.2020112,103220.0,103210.0,1.08281776]
[1746855033359,0.00826,103220.0,103210.0,1.13011109]
[1746855040462,0.00826,103220.0,103210.0,1.49091109]
[1746855051862,0.36146571,103230.0,103220.0,0.1937512]
[1746855051863,0.16773281,103230.0,103220.0,0.1937512]
[1746855052065,0.16773281,103230.0,103220.0,0.90825119]
[1746855052368,0.16773281,103230.0,103220.0,1.02695786]
[1746855052554,0.16773281,103230.0,103220.0,1.123843]
[1746855053869,0.0938,103230.0,103220.0,1.123843]
[1746855054165,0.0938,103230.0,103220.0,1.127843]
[1746855054368,0.0938,103230.0,103220.0,2.287763]
[1746855054970,0.0948,103230.0,103220.0,2.290763]
[1746855059064,0.0948,103230.0,103220.0,2.19617634]
[1746855059265,0.0948,103230.0,103220.0,2.290763]
[1746855066174,0.0948,103230.0,103220.0,2.124763]
[1746855067175,0.0948,103230.0,103220.0,2.290763]
[1746855070875,0.0948,103230.0,103220.0,2.173243]
[1746855071183,0.0948,103230.0,103220.0,2.375363]
[1746855072277,0.0948,103230.0,103220.0,2.406363]
[1746855075177,0.0948,103230.0,103220.0,2.240363]
[1746855076077,0.0948,103230.0,103220.0,2.406363]
[1746855078180,0.0948,103230.0,103220.0,2.240363]
[1746855079278,0.0948,103230.0,103220.0,2.406363]
[1746855080183,0.0948,103230.0,103220.0,2.240363]
[1746855081079,0.0948,103230.0,103220.0,2.406363]
[1746855082381,0.0948,103230.0,103220.0,2.045563]
[1746855082583,0.0948,103230.0,103220.0,2.406363]
[1746855084970,0.16873281,103230.0,103220.0,2.406363]
[1746855086276,0.16873281,103230.0,103220.0,2.240363]
[1746855090687,0.10563281,103230.0,103220.0,2.14577634]
[1746855091189,0.17043281,103230.0,103220.0,2.240363]
[1746855091996,0.17043281,103230.0,103220.0,2.14577634]
[1746855092190,0.36416521,103230.0,103220.0,1.84855634]
[1746855092490,0.36416521,103230.0,103220.0,2.08327634]
[1746855092792,0.36416521,103230.0,103220.0,2.13056967]
[1746855093295,0.53016521,103230.0,103220.0,2.13056967]
[1746855095995,0.53016521,103230.0,103220.0,1.76976967]
[1746855096386,0.53016521,103230.0,103220.0,2.13056967]
[1746855099995,0.53016521,103230.0,103220.0,2.08327634]
[1746855100200,0.53016521,103230.0,103220.0,2.13056967]
[1746855100397,0.53016521,103230.0,103220.0,1.65480514]
[1746855100697,0.93825854,103230.0,103220.0,1.38116514]
[1746855100897,0.93825854,103230.0,103220.0,0.22124514]
[1746855101098,0.93825854,103230.0,103220.0,0.10388514]
[1746855101295,1.39513454,103230.0,103220.0,0.22124514]
[1746855101491,1.64513454,103230.0,103220.0,0.17134514]
[1746855101998,1.44513454,103230.0,103220.0,0.17134514]
[1746855102196,1.44513454,103230.0,103220.0,0.05398514]
[1746855102391,1.59513454,103230.0,103220.0,0.05398514]
[1746855104804,1.70918986,103230.0,103220.0,0.05398514]
[1746855109107,1.61972851,103230.0,103220.0,0.05398514]
[1746855110709,1.52285251,103230.0,103220.0,0.05398514]
[1746855110907,1.61972851,103230.0,103220.0,0.05398514]
[1746855113403,1.36972851,103230.0,103220.0,0.05398514]
[1746855116110,1.00892851,103230.0,103220.0,0.05398514]
[1746855116309,1.73052851,103230.0,103220.0,0.05398514]
[1746855117409,1.63365251,103230.0,103220.0,0.05398514]
[1746855117709,1.73052851,103230.0,103220.0,0.08688514]
[1746855118708,1.27285251,103230.0,103220.0,0.08688514]
[1746855118914,0.88315918,103230.0,103220.0,0.39252967]
[1746855119121,0.98315918,103230.0,103220.0,0.39252967]
[1746855119412,0.81715918,103230.0,103220.0,0.34523634]
[1746855119904,0.86445251,103230.0,103220.0,0.34523634]
[1746855120105,0.87171251,103230.0,103220.0,0.34523634]
[1746855121016,0.87171251,103230.0,103220.0,0.15148514]
[1746855123012,0.77171251,103230.0,103220.0,0.15148514]
[1746855124906,0.80311251,103230.0,103220.0,0.15148514]
[1746855125306,0.77171251,103230.0,103220.0,0.15148514]
[1746855126712,0.77171251,103230.0,103220.0,0.34523634]
[1746855126914,0.77171251,103230.0,103220.0,0.15148514]
[1746855130217,0.72441918,103230.0,103220.0,0.15148514]
[1746855130519,0.72441918,103230.0,103220.0,0.14848514]
[1746855131117,0.72441918,103230.0,103220.0,0.14448514]
[1746855131420,1.12271251,103230.0,103220.0,0.14448514]
[1746855131723,0.77271251,103230.0,103220.0,0.14448514]
[1746855132124,0.8373839,103230.0,103220.0,0.14448514]
[1746855132726,0.79009057,103230.0,103220.0,0.14448514]
[1746855133023,0.8373839,103230.0,103220.0,0.14448514]
[1746855135822,0.8573839,103230.0,103220.0,0.14448514]
[1746855139414,0.8885839,103230.0,103220.0,0.14448514]
[1746855140222,0.8885839,103230.0,103220.0,0.31048514]
[1746855141121,0.8885839,103230.0,103220.0,0.14448514]
[1746855142123,1.2485839,103230.0,103220.0,0.14448514]
[1746855142309,1.2485839,103230.0,103220.0,0.11308514]
[1746855142515,1.2485839,103230.0,103220.0,0.07988514]
[1746855142820,1.2485839,103230.0,103220.0,0.04698514]
[1746855143220,1.4145839,103230.0,103220.0,0.04698514]
[1746855145021,1.4165839,103230.0,103220.0,0.04698514]
[1746855146317,1.4413711,103230.0,103220.0,0.04698514]
[1746855147223,1.45120696,103230.0,103220.0,0.04698514]
[1746855147617,1.45120696,103230.0,103220.0,0.07888514]
[1746855149322,1.45120696,103230.0,103220.0,0.04698514]
[1746855149523,0.1937512,103220.0,103210.0,0.17934]
[1746855149720,0.73384453,103220.0,103210.0,0.0319]
[1746855150027,0.73384453,103220.0,103210.0,0.12877575]
[1746855151528,0.6865512,103220.0,103210.0,0.12877575]
[1746855151727,0.73384453,103220.0,103210.0,0.16127575]
[1746855152021,0.73384453,103220.0,103210.0,0.16227575]
[1746855153229,0.73584453,103220.0,103210.0,0.16127575]
[1746855153426,0.73784453,103220.0,103210.0,0.16127575]
[1746855153630,0.90137747,103220.0,103210.0,0.16127575]
[1746855157426,0.54057747,103220.0,103210.0,0.16127575]
[1746855157731,0.90137747,103220.0,103210.0,0.16127575]
[1746855159325,0.54057747,103220.0,103210.0,0.16127575]
[1746855159633,0.90137747,103220.0,103210.0,0.16127575]
[1746855161537,0.90863747,103220.0,103210.0,0.16127575]
[1746855164039,0.8438911,103220.0,103210.0,0.16127575]
[1746855166342,0.79659777,103220.0,103210.0,0.16127575]
[1746855166544,0.8438911,103220.0,103210.0,0.16127575]
[1746855166743,0.8438911,103220.0,103210.0,0.19407575]
[1746855168837,0.86859777,103220.0,103210.0,0.19407575]
[1746855176546,0.90863974,103220.0,103210.0,0.19407575]
[1746855177749,0.54783974,103220.0,103210.0,0.19407575]
[1746855177948,0.90863974,103220.0,103210.0,0.19407575]
[1746855181047,0.86134641,103220.0,103210.0,0.19407575]
[1746855181237,0.90863974,103220.0,103210.0,0.19407575]
[1746855184651,0.86859777,103220.0,103210.0,0.19407575]
[1746855188854,0.50779777,103220.0,103210.0,0.19407575]
[1746855189041,0.86859777,103220.0,103210.0,0.19407575]
[1746855190244,0.82130444,103220.0,103210.0,0.19407575]
[1746855190444,0.86859777,103220.0,103210.0,0.19407575]
[1746855194651,0.54783975,103220.0,103210.0,0.19407575]
[1746855194850,0.90863975,103220.0,103210.0,0.19407575]
[1746855195249,0.86134642,103220.0,103210.0,0.19407575]
[1746855195447,0.90863975,103220.0,103210.0,0.19407575]
[1746855196057,0.54783975,103220.0,103210.0,0.19407575]
[1746855196257,0.90863975,103220.0,103210.0,0.19407575]
[1746855202562,0.54783975,103220.0,103210.0,0.19407575]
[1746855202762,0.90863975,103220.0,103210.0,0.19407575]
[1746855209257,0.90863975,103220.0,103210.0,0.16127575]
[1746855215369,0.96863975,103220.0,103210.0,0.16127575]
[1746855215569,0.95863975,103220.0,103210.0,0.16127575]
[1746855217265,0.1937699,103210.0,103200.0,0.01841905]